[Event "1000GM Spring Break Schev-D 2024"]
[Site "San Jose"]
[Date "2024.04.02"]
[Round "1.1"]
[White "Zhuge, Katherine"]
[Black "Varela Velazquez, Carlos Francisco"]
[Result "0-1"]
[ECO "C88"]
[WhiteElo "1798"]
[BlackElo "2113"]
[Annotator "RC"]
[PlyCount "102"]
[EventDate "2024.03.28"]
[EventType "schev"]
[EventCountry "USA"]
[SourceTitle "playchess.com"]
[Source "ChessBase"]
[SourceQuality "1"]
[TimeControl "5400+30"]

1. e4 {[%emt 0:00:02]} e5 {[%emt 0:00:11]} 2. Nf3 {[%emt 0:00:06]} Nc6 {[%emt 0:00:04]} 3. Bb5 {[%emt 0:00:13]} a6 {[%emt 0:00:03]} 4. Ba4 {[%emt 0:00:05]} Nf6 {[%emt 0:00:04]} 5. O-O {[%emt 0:00:12]} Be7 {[%emt 0:00:06]} 6. Re1 {[%emt 0:00:14]} b5 {[%emt 0:00:03]} 7. Bb3 {[%emt 0:00:05]} O-O {[%emt 0:00:06]} 8. a4 {[%emt 0:00:09]} b4 {[%emt 0:00:16]} 9. d3 {[%emt 0:00:20]} d6 {[%emt 0:00:12]} 10. Nbd2 {[%emt 0:00:50]} Na5 {[%emt 0:00:22]} 11. Ba2 {[%emt 0:00:38]} c5 {[%emt 0:00:11]} 12. c3 {[%emt 0:02:23]} Rb8 {[%emt 0:09:00]} 13. Nf1 {[%emt 0:03:52]} bxc3 {[%emt 0:22:30]} 14. bxc3 {[%emt 0:00:11]} Be6 {[%emt 0:00:04]} 15. Bxe6 {[%emt 0:06:31]} fxe6 {[%emt 0:00:57]} 16. Ng3 {[%emt 0:01:50]} h6 {[%emt 0:09:45]} 17. h3 {[%emt 0:05:19]} Nb3 {[%emt 0:05:25]} 18. Rb1 {[%emt 0:03:38]} Nxc1 {[%emt 0:01:09]} 19. Qxc1 {[%emt 0:02:23]} Nd7 {[%emt 0:00:37]} 20. Qc2 {[%emt 0:05:04]} Qa5 {[%emt 0:04:12]} 21. d4 {[%emt 0:15:08]} c4 {[%emt 0:16:39]} 22. Nd2 {[%emt 0:09:07]} Rxb1 {[%emt 0:08:06]} 23. Rxb1 {[%emt 0:00:45]} Nb6 {[%emt 0:00:31]} 24. Ne2 {[%emt 0:09:03]} Rc8 {[%emt 0:06:37]} 25. Ra1 {[%emt 0:18:29]} Nd7 {[%emt 0:00:37]} 26. Qb2 {[%emt 0:02:09]} Rb8 {[%emt 0:02:31]} 27. Qa2 {[%emt 0:02:30]} d5 {[%emt 0:00:15]} 28. dxe5 {[%emt 0:03:14]} Nxe5 {[%emt 0:00:26]} 29. Rb1 {[%emt 0:01:22]} Rxb1+ {[%emt 0:06:52]} 30. Qxb1 {[%emt 0:00:09]} Nd3 {[%emt 0:00:16]} 31. exd5 {[%emt 0:05:47]} exd5 {[%emt 0:00:28]} 32. Qb7 {[%emt 0:02:01]} Bf6 {[%emt 0:03:33]} 33. Qc8+ {[%emt 0:01:12]} Qd8 {[%emt 0:01:09]} 34. Qxd8+ {[%emt 0:00:43]} Bxd8 {[%emt 0:00:05]} 35. Nf3 {[%emt 0:00:47]} Kf7 {[%emt 0:00:51]} 36. Nfd4 {[%emt 0:00:25]} Bb6 {[%emt 0:00:42]} 37. g3 {[%emt 0:00:25]} Kf6 {[%emt 0:01:44]} 38. Kg2 {[%emt 0:00:26]} g5 {[%emt 0:00:06]} 39. Kf3 {[%emt 0:00:35]} Nc5 {[%emt 0:01:25]} 40. Nc6 {[%emt 0:01:02]} Nxa4 {[%emt 0:00:17]} 41. Nb4 {[%emt 0:00:05]} Ke5 {[%emt 0:00:44]} 42. Nxa6 {[%emt 0:00:16]} Ba5 {[%emt 0:00:26]} 43. Nb4 {[%emt 0:01:09]} Bxb4 {[%emt 0:00:06]} 44. cxb4 {[%emt 0:00:05]} d4 {[%emt 0:00:05]} 45. Nc1 {[%emt 0:00:53]} Nc3 {[%emt 0:00:16]} 46. Ne2 {[%emt 0:00:22]} Nd5 {[%emt 0:01:00]} 47. b5 {[%emt 0:00:10]} d3 {[%emt 0:00:07]} 48. Ng1 {[%emt 0:00:39]} Kd4 {[%emt 0:01:06]} 49. h4 {[%emt 0:00:41]} gxh4 {[%emt 0:00:18]} 50. gxh4 {[%emt 0:00:10]} c3 {[%emt 0:00:25]} 51. h5 {[%emt 0:00:49]} c2 {[%emt 0:00:13]} 0-1

[Event "1000GM Spring Break Schev-D 2024"]
[Site "San Jose"]
[Date "2024.04.02"]
[Round "1.3"]
[White "Stevens, Adam B"]
[Black "Dominguez Aguilar, Guillermo"]
[Result "0-1"]
[ECO "B38"]
[WhiteElo "1969"]
[BlackElo "2284"]
[Annotator "RC"]
[PlyCount "88"]
[EventDate "2024.03.28"]
[EventType "schev"]
[EventCountry "USA"]
[SourceTitle "playchess.com"]
[Source "ChessBase"]
[SourceQuality "1"]
[TimeControl "5400+30"]

1. d4 {[%emt 0:00:01]} d6 {[%emt 0:01:21]} 2. Nf3 {[%emt 0:00:10]} g6 {[%emt 0:00:23]} 3. c4 {[%emt 0:00:57]} Bg7 {[%emt 0:00:11]} 4. e4 {[%emt 0:02:47]} Nf6 {[%emt 0:00:21]} 5. Nc3 {[%emt 0:00:27]} O-O {[%emt 0:00:32]} 6. Be2 {[%emt 0:00:07]} c5 {[%emt 0:04:43]} 7. h3 {[%emt 0:02:13]} cxd4 {[%emt 0:03:54]} 8. Nxd4 {[%emt 0:00:12]} Nc6 {[%emt 0:00:09]} 9. Be3 {[%emt 0:00:42]} Bd7 {[%emt 0:03:56]} 10. O-O {[%emt 0:01:34]} Nxd4 {[%emt 0:00:33]} 11. Bxd4 {[%emt 0:01:05]} Bc6 {[%emt 0:02:32]} 12. Qd3 {[%emt 0:02:00]} a5 {[%emt 0:00:41]} 13. Rfd1 {[%emt 0:03:36]} Nd7 {[%emt 0:01:58]} 14. Bxg7 {[%emt 0:00:45]} Kxg7 {[%emt 0:00:03]} 15. Qd4+ {[%emt 0:05:21]} f6 {[%emt 0:03:15]} 16. f4 {[%emt 0:01:14]} e5 {[%emt 0:06:24]} 17. Qxd6 {[%emt 0:16:15]} Qb6+ {[%emt 0:00:19]} 18. Kh2 {[%emt 0:00:46]} Qxb2 {[%emt 0:00:17]} 19. Rac1 {[%emt 0:03:36]} exf4 {[%emt 0:04:39]} 20. Qxf4 {[%emt 0:01:08]} Ne5 {[%emt 0:06:39]} 21. Qd2 {[%emt 0:02:54]} Qxd2 {[%emt 0:01:22]} 22. Rxd2 {[%emt 0:00:05]} a4 {[%emt 0:00:56]} 23. a3 {[%emt 0:01:17]} Ra5 {[%emt 0:02:03]} 24. Rb1 {[%emt 0:04:32]} Nd7 {[%emt 0:01:14]} 25. Bd1 {[%emt 0:03:34]} Nc5 {[%emt 0:01:59]} 26. Bc2 {[%emt 0:00:38]} Re8 {[%emt 0:00:40]} 27. Rb4 {[%emt 0:04:09]} h5 {[%emt 0:01:06]} 28. Rd4 {[%emt 0:05:03]} Re5 {[%emt 0:02:06]} 29. Kg1 {[%emt 0:05:11]} h4 {[%emt 0:00:36]} 30. Kf2 {[%emt 0:01:05]} Ra8 {[%emt 0:00:31]} 31. Kg1 {[%emt 0:07:26]} Rg5 {[%emt 0:00:54]} 32. Bd1 {[%emt 0:04:55]} Rg3 {[%emt 0:04:22]} 33. Bf3 {[%emt 0:00:27]} Ne6 {[%emt 0:00:20]} 34. Rd1 {[%emt 0:01:59]} Ng5 {[%emt 0:00:11]} 35. Ne2 {[%emt 0:01:58]} Nxf3+ {[%emt 0:00:32]} 36. Kf2 {[%emt 0:00:18]} Ng5 {[%emt 0:00:55]} 37. Nxg3 {[%emt 0:00:25]} hxg3+ {[%emt 0:00:06]} 38. Kxg3 {[%emt 0:00:26]} Nxe4+ {[%emt 0:00:08]} 39. Kh2 {[%emt 0:00:56]} Re8 {[%emt 0:00:08]} 40. Rb2 {[%emt 0:01:38]} Nc5 {[%emt 0:00:09]} 41. Rd4 {[%emt 0:01:53]} Re3 {[%emt 0:00:28]} 42. Ra2 {[%emt 0:00:02]} f5 {[%emt 0:00:45]} 43. g4 {[%emt 0:00:40]} Ne6 {[%emt 0:00:08]} 44. Rd6 {[%emt 0:00:58]} Ng5 {[%emt 0:00:28]} 0-1

[Event "1000GM Spring Break Schev-D 2024"]
[Site "San Jose"]
[Date "2024.04.02"]
[Round "1.4"]
[White "Solis Castro, Angel Alejan"]
[Black "Jin, Austin"]
[Result "1-0"]
[ECO "C00"]
[WhiteElo "2071"]
[BlackElo "1950"]
[Annotator "RC"]
[PlyCount "79"]
[EventDate "2024.03.28"]
[EventType "schev"]
[EventCountry "USA"]
[SourceTitle "playchess.com"]
[Source "ChessBase"]
[SourceQuality "1"]
[TimeControl "5400+30"]

1. Nf3 {[%emt 0:02:36]} d5 {[%emt 0:00:55]} 2. g3 {[%emt 0:00:46]} Nf6 {[%emt 1:30:35]} 3. Bg2 {[%emt 0:01:13]} e6 {[%emt 0:00:00]} 4. O-O {[%emt 0:02:20]} Be7 {[%emt 0:00:00]} 5. d3 {[%emt 0:02:03]} O-O {[%emt 0:00:00]} 6. Nbd2 {[%emt 0:01:49]} c5 {[%emt 0:00:00]} 7. e4 {[%emt 1:23:13]} Nc6 {[%emt 0:00:00]} 8. Re1 {[%emt 0:00:00]} Qc7 {[%emt 0:00:00]} 9. c3 {[%emt 0:00:00]} d4 {[%emt 0:00:00]} 10. e5 {[%emt 0:00:00]} dxc3 {[%emt 0:00:00]} 11. bxc3 {[%emt 0:00:00]} Nd5 {[%emt 0:00:00]} 12. Qc2 {[%emt 0:00:00]} Rd8 {[%emt 0:00:00]} 13. a3 {[%emt 0:00:00]} h6 {[%emt 0:00:00]} 14. Bb2 {[%emt 0:00:00]} Bf8 {[%emt 0:00:00]} 15. Ne4 {[%emt 0:00:00]} Nde7 {[%emt 0:00:00]} 16. d4 {[%emt 0:00:00]} Ng6 {[%emt 0:00:00]} 17. h4 {[%emt 0:00:00]} cxd4 {[%emt 0:00:00]} 18. cxd4 {[%emt 0:00:00]} Be7 {[%emt 0:00:00]} 19. h5 {[%emt 0:00:00]} Nf8 {[%emt 0:00:00]} 20. g4 {[%emt 0:00:00]} Nh7 {[%emt 0:00:00]} 21. Bc1 {[%emt 0:00:00]} Qd7 {[%emt 0:00:00]} 22. Be3 {[%emt 0:00:00]} Qe8 {[%emt 0:00:00]} 23. Rad1 {[%emt 0:00:00]} f6 {[%emt 0:00:00]} 24. exf6 {[%emt 0:00:00]} Nxf6 {[%emt 0:00:00]} 25. Nxf6+ {[%emt 0:00:00]} Bxf6 {[%emt 0:00:00]} 26. Ne5 {[%emt 0:00:00]} Nxe5 {[%emt 0:00:49]} 27. dxe5 {[%emt 0:00:00]} Rxd1 {[%emt 0:00:27]} 28. Qxd1 {[%emt 0:00:00]} Be7 {[%emt 0:02:14]} 29. Qd3 {[%emt 0:00:27]} Qa4 {[%emt 0:03:02]} 30. Qg6 {[%emt 0:00:18]} Bf8 {[%emt 0:05:42]} 31. Bxh6 {[%emt 0:02:56]} Qa5 {[%emt 0:01:17]} 32. Re3 {[%emt 0:00:20]} Bd7 {[%emt 0:00:53]} 33. Be4 {[%emt 0:00:54]} Bc6 {[%emt 0:00:33]} 34. Qh7+ {[%emt 0:03:48]} Kf7 {[%emt 0:00:01]} 35. Rf3+ {[%emt 0:00:00]} Ke7 {[%emt 0:00:00]} 36. Bg5+ {[%emt 0:00:19]} Kd7 {[%emt 0:00:13]} 37. Rf7+ {[%emt 0:00:25]} Ke8 {[%emt 0:00:08]} 38. Rxf8+ {[%emt 0:00:29]} Kxf8 {[%emt 0:00:13]} 39. Qh8+ {[%emt 0:00:05]} Kf7 {[%emt 0:00:06]} 40. Bg6# {[%emt 0:00:49]} 1-0

[Event "1000GM Spring Break Schev-D 2024"]
[Site "San Jose"]
[Date "2024.04.02"]
[Round "1.5"]
[White "Gongora Montes, Benjamin"]
[Black "Karthi, Jashith"]
[Result "0-1"]
[ECO "D05"]
[WhiteElo "2106"]
[BlackElo "2039"]
[Annotator "RC"]
[PlyCount "58"]
[EventDate "2024.03.28"]
[EventType "schev"]
[EventCountry "USA"]
[SourceTitle "playchess.com"]
[Source "ChessBase"]
[SourceQuality "1"]
[TimeControl "5400+30"]

1. d4 {[%emt 0:00:02]} d5 {[%emt 0:12:53]} 2. Nf3 {[%emt 0:00:16]} Nf6 {[%emt 0:00:06]} 3. Nbd2 {[%emt 0:00:07]} e6 {[%emt 0:00:18]} 4. e3 {[%emt 0:00:09]} Bd6 {[%emt 0:00:22]} 5. Bd3 {[%emt 0:00:10]} b6 {[%emt 0:00:08]} 6. b3 {[%emt 0:00:50]} Bb7 {[%emt 0:00:23]} 7. Bb2 {[%emt 0:00:08]} O-O {[%emt 0:00:09]} 8. Ne5 {[%emt 0:00:17]} Nbd7 {[%emt 0:00:54]} 9. Qf3 {[%emt 0:04:44]} c5 {[%emt 0:03:27]} 10. Qh3 {[%emt 0:00:39]} h6 {[%emt 0:06:43]} 11. Rd1 {[%emt 0:13:26]} Qc7 {[%emt 0:04:14]} 12. f4 {[%emt 0:00:18]} Ne4 {[%emt 0:03:22]} 13. Bxe4 {[%emt 0:07:55]} dxe4 {[%emt 0:07:32]} 14. Nxd7 {[%emt 0:00:27]} Qxd7 {[%emt 0:00:10]} 15. dxc5 {[%emt 0:11:56]} Bxc5 {[%emt 0:00:18]} 16. Nxe4 {[%emt 0:00:47]} Qe7 {[%emt 0:00:55]} 17. Nxc5 {[%emt 0:08:31]} Qxc5 {[%emt 0:00:16]} 18. Qg3 {[%emt 0:00:20]} f6 {[%emt 0:00:37]} 19. Qf2 {[%emt 0:28:21]} Qa5+ {[%emt 0:00:57]} 20. Qd2 {[%emt 0:00:47]} Qxa2 {[%emt 0:02:26]} 21. Bd4 {[%emt 0:04:06]} Rac8 {[%emt 0:03:02]} 22. Rc1 {[%emt 0:01:56]} Rfd8 {[%emt 0:02:11]} 23. Qf2 {[%emt 0:04:56]} e5 {[%emt 0:02:45]} 24. Ba1 {[%emt 0:00:26]} Qa3 {[%emt 0:00:40]} 25. O-O {[%emt 0:00:22]} exf4 {[%emt 0:01:40]} 26. exf4 {[%emt 0:00:15]} Qc5 {[%emt 0:00:20]} 27. c4 {[%emt 0:01:59]} Rd2 {[%emt 0:01:02]} 28. Qxc5 {[%emt 0:01:08]} Rxg2+ {[%emt 0:00:10]} 29. Kh1 {[%emt 0:00:07]} Rxc5 {[%emt 0:00:26]} 0-1

[Event "1000GM Spring Break Schev-D 2024"]
[Site "San Jose"]
[Date "2024.04.03"]
[Round "2.1"]
[White "Rodi, Luis Ernesto"]
[Black "Zhuge, Katherine"]
[Result "1-0"]
[ECO "B10"]
[WhiteElo "2211"]
[BlackElo "1778"]
[Annotator "RC"]
[PlyCount "107"]
[EventDate "2024.03.28"]
[EventType "schev"]
[EventCountry "USA"]
[SourceTitle "playchess.com"]
[Source "ChessBase"]
[SourceQuality "1"]
[TimeControl "5400+30"]

1. e4 {[%emt 0:01:35]} c6 {[%emt 0:00:08]} 2. Nf3 {[%emt 0:00:21]} d5 {[%emt 0:01:46]} 3. exd5 {[%emt 0:00:15]} cxd5 {[%emt 0:01:06]} 4. Ne5 {[%emt 0:00:10]} Nf6 {[%emt 0:06:16]} 5. d4 {[%emt 0:01:34]} e6 {[%emt 0:01:39]} 6. Bb5+ {[%emt 0:01:27]} Bd7 {[%emt 0:01:19]} 7. Nxd7 {[%emt 0:00:12]} Nbxd7 {[%emt 0:00:18]} 8. c3 {[%emt 0:03:02]} a6 {[%emt 0:01:10]} 9. Bd3 {[%emt 0:00:08]} Bd6 {[%emt 0:00:33]} 10. Bg5 {[%emt 0:03:52]} Rc8 {[%emt 0:04:16]} 11. a4 {[%emt 0:02:42]} Qc7 {[%emt 0:04:39]} 12. Bh4 {[%emt 0:00:28]} h6 {[%emt 0:04:39]} 13. Bg3 {[%emt 0:05:32]} Bxg3 {[%emt 0:00:38]} 14. hxg3 {[%emt 0:00:07]} Nb6 {[%emt 0:03:15]} 15. b3 {[%emt 0:03:02]} Nbd7 {[%emt 0:20:26]} 16. Ra2 {[%emt 0:02:00]} Rb8 {[%emt 0:10:11]} 17. Qe2 {[%emt 0:01:49]} Nb6 {[%emt 0:06:21]} 18. Rc2 {[%emt 0:01:34]} Nc8 {[%emt 0:02:34]} 19. Nd2 {[%emt 0:09:15]} Nd6 {[%emt 0:02:24]} 20. g4 {[%emt 0:00:37]} O-O {[%emt 0:04:18]} 21. g5 {[%emt 0:03:13]} hxg5 {[%emt 0:06:31]} 22. Qe5 {[%emt 0:00:38]} Rfd8 {[%emt 0:02:19]} 23. Qxg5 {[%emt 0:01:27]} b5 {[%emt 0:01:20]} 24. axb5 {[%emt 0:01:19]} axb5 {[%emt 0:00:08]} 25. Qh4 {[%emt 0:03:53]} Kf8 {[%emt 0:00:28]} 26. Qg3 {[%emt 0:03:30]} Ke7 {[%emt 0:01:28]} 27. Nf3 {[%emt 0:03:58]} Ra8 {[%emt 0:01:09]} 28. O-O {[%emt 0:00:31]} Ra3 {[%emt 0:01:16]} 29. Nd2 {[%emt 0:01:51]} Rg8 {[%emt 0:02:01]} 30. Re1 {[%emt 0:00:24]} g5 {[%emt 0:04:13]} 31. Qe5 {[%emt 0:05:49]} g4 {[%emt 0:01:57]} 32. g3 {[%emt 0:01:06]} Rh8 {[%emt 0:01:40]} 33. Qe2 {[%emt 0:02:43]} Qd7 {[%emt 0:00:52]} 34. Rcc1 {[%emt 0:00:52]} Qc6 {[%emt 0:01:02]} 35. Kg2 {[%emt 0:02:59]} Raa8 {[%emt 0:00:57]} 36. Rh1 {[%emt 0:00:53]} Rxh1 {[%emt 0:01:31]} 37. Kxh1 {[%emt 0:00:05]} Rh8+ {[%emt 0:00:42]} 38. Kg2 {[%emt 0:00:19]} Rh6 {[%emt 0:00:57]} 39. Nf1 {[%emt 0:34:48]} Rh8 {[%emt 0:00:31]} 40. Ne3 {[%emt 0:00:00]} Rg8 {[%emt 0:00:38]} 41. Kg1 {[%emt 0:00:00]} Rg7 {[%emt 0:00:21]} 42. Bf5 {[%emt 0:00:00]} Nde4 {[%emt 0:00:41]} 43. Bxg4 {[%emt 0:00:00]} Nxg4 {[%emt 0:00:09]} 44. Nxg4 {[%emt 0:00:00]} Nxc3 {[%emt 0:00:12]} 45. Qf3 {[%emt 0:00:00]} Ne2+ {[%emt 0:00:20]} 46. Kg2 {[%emt 0:00:00]} Qxc1 {[%emt 0:00:30]} 47. Qf6+ {[%emt 0:00:00]} Ke8 {[%emt 0:00:17]} 48. Qxg7 {[%emt 0:00:00]} Qg1+ {[%emt 0:01:07]} 49. Kf3 {[%emt 0:00:00]} Qd1 {[%emt 0:00:21]} 50. Nf6+ {[%emt 0:00:00]} Ke7 {[%emt 0:00:05]} 51. Nxd5+ {[%emt 0:00:00]} Kd7 {[%emt 0:01:15]} 52. Qxf7+ {[%emt 0:00:00]} Kd6 {[%emt 0:00:05]} 53. Qc7+ {[%emt 0:00:00]} Kxd5 {[%emt 0:00:06]} 54. Qd7# {[%emt 0:00:00]} 1-0

[Event "1000GM Spring Break Schev-D 2024"]
[Site "San Jose"]
[Date "2024.04.03"]
[Round "2.3"]
[White "Solis Castro, Angel Alejan"]
[Black "Stevens, Adam B"]
[Result "1-0"]
[ECO "A06"]
[WhiteElo "2066"]
[BlackElo "1941"]
[Annotator "RC"]
[PlyCount "75"]
[EventDate "2024.03.28"]
[EventType "schev"]
[EventCountry "USA"]
[SourceTitle "playchess.com"]
[Source "ChessBase"]
[SourceQuality "1"]
[TimeControl "5400+30"]

1. Nf3 {[%emt 0:00:28]} d5 {[%emt 0:00:02]} 2. g3 {[%emt 0:00:13]} Nf6 {[%emt 0:00:03]} 3. Bg2 {[%emt 0:00:09]} e6 {[%emt 0:00:16]} 4. O-O {[%emt 0:00:09]} Be7 {[%emt 0:00:03]} 5. d3 {[%emt 0:00:08]} O-O {[%emt 0:00:20]} 6. Nbd2 {[%emt 0:00:22]} c5 {[%emt 0:00:04]} 7. b3 {[%emt 0:00:58]} Nc6 {[%emt 0:01:42]} 8. Bb2 {[%emt 0:00:10]} Qc7 {[%emt 0:01:39]} 9. e3 {[%emt 0:00:53]} e5 {[%emt 0:04:04]} 10. a3 {[%emt 0:01:56]} Bf5 {[%emt 0:07:40]} 11. Qe2 {[%emt 0:01:39]} d4 {[%emt 0:02:14]} 12. c3 {[%emt 0:04:43]} dxc3 {[%emt 0:03:36]} 13. Bxc3 {[%emt 0:00:11]} Rad8 {[%emt 0:00:14]} 14. e4 {[%emt 0:02:17]} Bg4 {[%emt 0:03:09]} 15. h3 {[%emt 0:02:39]} Bxf3 {[%emt 0:01:53]} 16. Nxf3 {[%emt 0:00:09]} Rd7 {[%emt 0:00:42]} 17. Rfd1 {[%emt 0:05:03]} Rfd8 {[%emt 0:00:40]} 18. Bf1 {[%emt 0:00:34]} Ne8 {[%emt 0:09:36]} 19. Qb2 {[%emt 0:03:04]} f6 {[%emt 0:02:25]} 20. b4 {[%emt 0:02:55]} c4 {[%emt 0:03:40]} 21. Qa2 {[%emt 0:03:00]} Nd6 {[%emt 0:03:22]} 22. Nd2 {[%emt 0:07:01]} Kh8 {[%emt 0:00:58]} 23. Nxc4 {[%emt 0:00:14]} Nxe4 {[%emt 0:04:53]} 24. Bb2 {[%emt 0:00:50]} Nxg3 {[%emt 0:09:40]} 25. fxg3 {[%emt 0:01:26]} e4 {[%emt 0:00:04]} 26. Kh2 {[%emt 0:01:02]} exd3 {[%emt 0:01:42]} 27. Nd2 {[%emt 0:05:36]} f5 {[%emt 0:04:07]} 28. Qc4 {[%emt 0:06:52]} b5 {[%emt 0:06:07]} 29. Qf4 {[%emt 0:02:05]} Bd6 {[%emt 0:00:46]} 30. Qf3 {[%emt 0:03:43]} Ne5 {[%emt 0:01:54]} 31. Bxe5 {[%emt 0:00:53]} Bxe5 {[%emt 0:00:02]} 32. Rac1 {[%emt 0:00:11]} Qd6 {[%emt 0:00:53]} 33. Nb3 {[%emt 0:02:39]} f4 {[%emt 0:04:08]} 34. g4 {[%emt 0:09:12]} Qe6 {[%emt 0:01:53]} 35. Nc5 {[%emt 0:02:10]} Qa2+ {[%emt 0:00:13]} 36. Kh1 {[%emt 0:00:41]} Re7 {[%emt 0:05:42]} 37. Rxd3 {[%emt 0:01:31]} Rxd3 {[%emt 0:00:30]} 38. Qa8+ {[%emt 0:00:29]} 1-0

[Event "1000GM Spring Break Schev-D 2024"]
[Site "San Jose"]
[Date "2024.04.03"]
[Round "2.4"]
[White "Jin, Austin"]
[Black "Gongora Montes, Benjamin"]
[Result "1/2-1/2"]
[ECO "C02"]
[WhiteElo "1966"]
[BlackElo "2092"]
[Annotator "RC"]
[PlyCount "69"]
[EventDate "2024.03.28"]
[EventType "schev"]
[EventCountry "USA"]
[SourceTitle "playchess.com"]
[Source "ChessBase"]
[SourceQuality "1"]
[TimeControl "5400+30"]

1. e4 {[%emt 0:03:18]} e6 {[%emt 0:00:22]} 2. d4 {[%emt 0:00:09]} d5 {[%emt 0:00:07]} 3. e5 {[%emt 0:00:04]} c5 {[%emt 0:00:08]} 4. c3 {[%emt 0:00:07]} Bd7 {[%emt 0:00:08]} 5. Nf3 {[%emt 0:00:12]} Qb6 {[%emt 0:00:36]} 6. Bd3 {[%emt 0:00:39]} cxd4 {[%emt 0:04:07]} 7. Nxd4 {[%emt 0:03:00]} Nc6 {[%emt 0:00:11]} 8. Nxc6 {[%emt 0:02:00]} bxc6 {[%emt 0:00:16]} 9. O-O {[%emt 0:01:13]} Ne7 {[%emt 0:00:55]} 10. Qe2 {[%emt 0:02:24]} Rb8 {[%emt 0:00:25]} 11. Nd2 {[%emt 0:01:30]} Nf5 {[%emt 0:00:43]} 12. Nf3 {[%emt 0:02:22]} Be7 {[%emt 0:00:22]} 13. b3 {[%emt 0:09:27]} a5 {[%emt 0:01:09]} 14. Bf4 {[%emt 0:04:40]} Rb7 {[%emt 0:04:45]} 15. Rfd1 {[%emt 0:03:03]} Nh4 {[%emt 0:29:04]} 16. Nd2 {[%emt 0:17:24]} g5 {[%emt 0:01:26]} 17. Be3 {[%emt 0:05:19]} Qc7 {[%emt 0:00:49]} 18. Qh5 {[%emt 0:03:07]} h6 {[%emt 0:01:02]} 19. g3 {[%emt 0:08:09]} Nf5 {[%emt 0:00:23]} 20. Bxf5 {[%emt 0:00:52]} exf5 {[%emt 0:00:20]} 21. Nf3 {[%emt 0:01:45]} f4 {[%emt 0:01:26]} 22. Bd4 {[%emt 0:06:15]} Be6 {[%emt 0:01:02]} 23. c4 {[%emt 0:04:33]} Qc8 {[%emt 0:06:14]} 24. h3 {[%emt 0:00:24]} g4 {[%emt 0:05:09]} 25. cxd5 {[%emt 0:07:05]} Bxd5 {[%emt 0:00:50]} 26. e6 {[%emt 0:01:16]} Rf8 {[%emt 0:05:03]} 27. Bg7 {[%emt 0:03:33]} Bxf3 {[%emt 0:01:31]} 28. Bxf8 {[%emt 0:00:18]} Bxf8 {[%emt 0:00:15]} 29. Re1 {[%emt 0:01:35]} Re7 {[%emt 0:04:09]} 30. exf7+ {[%emt 0:01:51]} Kd8 {[%emt 0:00:59]} 31. Qxa5+ {[%emt 0:01:27]} Qc7 {[%emt 0:00:56]} 32. Qa8+ {[%emt 0:01:34]} Qc8 {[%emt 0:00:21]} 33. Qa5+ {[%emt 0:00:52]} Qc7 {[%emt 0:00:17]} 34. Qa8+ {[%emt 0:03:17]} Qc8 {[%emt 0:00:13]} 35. Qa5+ {[%emt 0:02:34]} 1/2-1/2

[Event "1000GM Spring Break Schev-D 2024"]
[Site "San Jose"]
[Date "2024.04.03"]
[Round "2.5"]
[White "Karthi, Jashith"]
[Black "Varela Velazquez, Carlos Francisco"]
[Result "1/2-1/2"]
[ECO "D36"]
[WhiteElo "2075"]
[BlackElo "2084"]
[Annotator "RC"]
[PlyCount "40"]
[EventDate "2024.03.28"]
[EventType "schev"]
[EventCountry "USA"]
[SourceTitle "playchess.com"]
[Source "ChessBase"]
[SourceQuality "1"]
[TimeControl "5400+30"]

1. d4 {[%emt 0:00:04]} Nf6 {[%emt 0:01:00]} 2. c4 {[%emt 0:00:06]} e6 {[%emt 0:00:15]} 3. Nf3 {[%emt 1:31:50]} d5 {[%emt 0:00:56]} 4. Nc3 {[%emt 0:00:00]} c6 {[%emt 0:00:06]} 5. cxd5 {[%emt 0:00:00]} exd5 {[%emt 0:00:07]} 6. Qc2 {[%emt 0:00:00]} g6 {[%emt 0:00:11]} 7. Bg5 {[%emt 0:00:00]} Be7 {[%emt 0:00:05]} 8. e3 {[%emt 0:00:00]} Bf5 {[%emt 0:00:03]} 9. Bd3 {[%emt 0:00:00]} Bxd3 {[%emt 0:00:03]} 10. Qxd3 {[%emt 0:00:00]} Nbd7 {[%emt 0:00:03]} 11. Bh6 {[%emt 0:00:00]} Bf8 {[%emt 0:00:18]} 12. Bxf8 {[%emt 0:00:00]} Kxf8 {[%emt 0:00:34]} 13. O-O {[%emt 0:00:00]} Qe7 {[%emt 0:01:26]} 14. b4 {[%emt 0:00:00]} a6 {[%emt 0:03:41]} 15. Rab1 {[%emt 0:00:00]} Ne4 {[%emt 0:05:35]} 16. Nd2 {[%emt 0:00:00]} Nxd2 {[%emt 0:02:25]} 17. Qxd2 {[%emt 0:00:00]} Kg7 {[%emt 0:02:43]} 18. a4 {[%emt 0:00:00]} Nb6 {[%emt 0:00:02]} 19. a5 {[%emt 0:00:00]} Nc4 {[%emt 0:00:02]} 20. Qd3 {[%emt 0:00:00]} f5 {[%emt 0:00:20]} 1/2-1/2